bitfinex/quotes_ETHUSD_20250801
["timestamp","ask_amount","ask_price","bid_price","bid_amount"]
[1754088461925,9.00577629,3460.5,3459.6,2.89045386]
[1754088462170,2.88987016,3460.4,3459.5,2.89057585]
[1754088462375,6.116,3460.5,3459.0,1.3121]
[1754088462585,6.116,3460.5,3459.7,2.8904176]
[1754088462878,6.114,3461.9,3460.1,0.55]
[1754088463176,0.8658,3462.1,3461.4,2.88899743]
[1754088463354,0.8658,3462.1,3461.4,2.88896507]
[1754088463738,0.8658,3462.1,3460.7,0.8815]
[1754088463944,0.8658,3462.1,3460.7,1.30169144]
[1754088464141,0.8658,3462.1,3461.5,2.88891308]
[1754088464345,0.8658,3462.1,3460.7,0.8815]
[1754088464667,13.05,3462.6,3462.5,2.88808664]
[1754088464979,6.111,3462.9,3461.8,2.88860061]
[1754088465180,6.9768,3463.3,3461.9,1.92984593]
[1754088465351,6.111,3463.3,3462.0,0.00702854]
[1754088465678,6.111,3463.3,3462.7,2.88788472]
[1754088465882,0.8658,3463.5,3461.9,4.3121]
[1754088465883,0.8658,3463.5,3462.3,2.88825347]
[1754088466065,3.4562,3463.8,3463.3,2.88734116]
[1754088466066,6.108,3463.8,3463.3,2.88734116]
[1754088466241,6.108,3463.8,3462.7,2.8878643]
[1754088466587,6.108,3463.8,3462.5,1.2887]
[1754088466588,6.108,3463.8,3463.2,2.88748089]
[1754088466770,6.108,3463.8,3463.7,0.144]
[1754088466981,7.4805,3463.8,3463.7,0.144]
[1754088467357,7.4805,3463.8,3462.1,0.47273653]
[1754088467553,3.03114206,3463.7,3463.2,0.144]
[1754088467776,0.144,3463.7,3463.2,0.144]
[1754088468191,0.9123,3463.6,3463.2,0.144]
[1754088468482,7.4765,3463.5,3461.6,3.0]
[1754088468641,10.50778597,3463.5,3463.0,0.144]
[1754088468836,2.88743984,3463.3,3462.4,2.88809093]
[1754088469038,0.9123,3463.2,3461.4,0.826]
[1754088469353,0.6042,3463.1,3462.6,0.1448]
[1754088469880,3.03165485,3463.1,3462.6,0.1448]
[1754088470199,6.101,3463.0,3462.9,0.144]
[1754088470402,7.4735,3463.0,3461.5,1.2887]
[1754088470603,7.4735,3463.0,3462.6,0.1448]
[1754088470775,2.92384994,3462.9,3462.6,0.1448]
[1754088470980,2.88785436,3462.8,3462.6,0.1448]
[1754088471157,4.26036297,3462.8,3460.9,0.826]
[1754088471361,1.91809899,3462.7,3462.2,0.1448]
[1754088471609,1.91809899,3462.7,3460.9,0.826]
[1754088471610,3.62983853,3462.6,3461.8,0.1448]
[1754088471912,1.9225,3462.6,3460.6,2.88967231]
[1754088472212,2.88823315,3462.4,3461.6,2.8888187]
[1754088472375,2.88836537,3462.2,3461.0,3.0]
[1754088472715,6.094,3462.1,3461.2,2.8891191]
[1754088472923,6.094,3462.1,3461.2,3.0]
[1754088472924,8.98243346,3462.1,3461.2,3.0]
[1754088473205,6.094,3462.1,3461.1,3.58893679]
[1754088473688,6.094,3462.2,3461.3,2.88908791]
[1754088473888,6.094,3462.2,3461.2,2.88917138]
[1754088474102,6.091,3462.2,3461.1,0.58893679]
[1754088474409,6.091,3462.2,3459.1,3.31141908]
[1754088474410,0.55,3461.9,3459.1,3.31141908]
[1754088474707,0.55,3461.6,3459.7,2.89040357]
[1754088474912,2.88923544,3461.2,3460.1,2.89008162]
[1754088475123,2.88961806,3460.7,3459.9,3.0]
[1754088475404,2.88961806,3460.7,3459.2,2.89084181]
[1754088475405,2.88990796,3460.4,3459.2,2.89084181]
[1754088475559,2.8900845,3460.2,3459.3,0.33113559]
[1754088475764,0.9123,3460.6,3459.4,2.89067011]
[1754088476022,0.9123,3460.6,3459.3,0.33113559]
[1754088476321,1.04632194,3460.5,3458.6,2.89326725]
[1754088476461,3.55,3460.3,3458.8,2.89317372]
[1754088476661,2.89008988,3460.1,3458.8,0.002]
[1754088476906,3.55,3459.9,3458.8,0.002]
[1754088477109,2.89086216,3459.2,3458.8,0.002]
[1754088477311,7.4585,3460.0,3458.8,0.002]
[1754088477312,3.55,3459.7,3458.8,0.002]
[1754088477474,0.4602,3459.6,3458.8,0.002]
[1754088477784,2.89093894,3459.1,3458.8,0.002]
[1754088478159,0.9123,3459.9,3458.8,0.002]
[1754088478359,0.9123,3459.9,3458.9,0.826]
[1754088478565,0.9123,3459.9,3458.8,0.002]
[1754088478566,2.89065455,3459.5,3458.8,0.002]
[1754088478766,2.89052272,3459.6,3458.8,0.002]
[1754088479009,2.89059441,3459.5,3458.8,0.002]
[1754088479216,0.9123,3459.9,3458.8,0.002]
[1754088479513,2.89034048,3459.8,3458.8,0.002]
[1754088479718,0.4602,3460.5,3459.1,2.8908706]
[1754088479885,6.083,3460.1,3458.8,0.59153383]
[1754088480060,8.97311301,3460.1,3459.2,2.89078362]
[1754088480266,6.083,3460.1,3459.3,2.89073858]
[1754088480614,3.0,3460.6,3458.8,0.002]
[1754088480615,6.9923,3461.0,3459.4,1.31760674]
[1754088480913,2.88801637,3462.6,3460.3,3.0]
[1754088480914,6.079,3462.3,3460.3,3.0]
[1754088481138,6.943,3463.3,3461.9,2.88858261]
[1754088481139,2.88791399,3462.8,3461.9,2.88858261]
[1754088481291,6.078,3462.9,3462.0,0.02888503]
[1754088481292,8.96576763,3462.9,3462.0,0.02888503]
[1754088481495,8.9657635,3462.9,3461.5,3.826]
[1754088481735,0.03609795,3462.8,3461.5,0.826]
[1754088482032,2.88684965,3464.0,3463.1,2.88751194]
[1754088482329,2.88684965,3464.0,3462.2,3.55]
[1754088482330,0.9123,3464.1,3462.5,0.826]
[1754088482642,0.9123,3464.1,3462.1,3.0]
[1754088482643,0.4602,3464.0,3462.1,3.0]
[1754088482797,1.35315834,3463.9,3461.9,0.826]
[1754088482992,3.0,3464.3,3462.6,2.88797108]
[1754088482993,4.25953353,3463.8,3462.6,2.88797108]
[1754088483192,7.02338857,3463.7,3461.9,3.826]
[1754088483397,7.02338857,3463.7,3459.8,2.04701712]
[1754088483398,6.9873,3463.7,3462.0,0.49158503]
[1754088483633,6.075,3463.7,3462.1,0.55]
[1754088483794,6.075,3463.7,3463.4,2.88725651]
[1754088483994,6.075,3463.7,3463.3,0.02887419]
[1754088484197,6.075,3463.7,3463.4,2.88733394]
[1754088484430,6.075,3463.7,3462.3,1.2887]
[1754088484741,0.03608961,3463.6,3462.2,0.18387]
[1754088484944,6.9873,3463.7,3462.5,2.88804199]
[1754088485166,6.9873,3463.7,3461.8,1.2887]
[1754088485362,2.88744842,3463.3,3462.4,2.88816939]
[1754088485660,3.34735878,3463.7,3462.8,2.88782613]
[1754088485805,6.068,3463.6,3462.6,2.88800323]
[1754088486006,4.3725,3463.5,3461.1,0.3]
[1754088486246,7.4385,3463.5,3462.8,2.88775448]
[1754088486572,2.88782603,3462.9,3462.0,2.8884936]
[1754088486703,0.58609274,3463.3,3460.9,0.826]
[1754088487020,2.88815962,3462.5,3461.6,2.88882279]
[1754088487223,0.9123,3462.6,3461.3,3.0]
[1754088487560,3.9123,3463.1,3461.4,4.5887]
[1754088487861,0.9123,3463.5,3462.8,2.88777602]
[1754088488155,0.9123,3463.5,3462.8,2.88782769]
[1754088488356,0.9123,3463.5,3462.3,0.02888253]
[1754088488592,0.9123,3463.5,3462.9,2.88769012]
[1754088488706,0.9123,3463.5,3462.7,2.88784421]
[1754088488903,0.9123,3463.5,3462.0,1.2887]
[1754088489104,2.88664742,3464.3,3461.7,3.0]
[1754088489105,0.0360917,3463.4,3461.7,3.0]
[1754088489304,2.88624328,3464.8,3462.7,3.55]
[1754088489619,3.0,3464.6,3464.0,2.88682711]
[1754088489826,3.0,3464.6,3463.7,2.88707495]
[1754088490017,3.0,3464.6,3463.4,0.02887336]
[1754088490206,3.79829619,3465.1,3464.1,2.88674229]
[1754088490406,3.0,3464.7,3463.3,2.88741951]
[1754088490607,1.4085792,3464.6,3462.6,0.002]
[1754088490808,3.0,3464.2,3462.6,0.002]
[1754088491003,10.38933429,3464.5,3462.6,0.002]
[1754088491004,0.001,3463.9,3462.6,0.002]
[1754088491243,3.0,3463.7,3462.6,0.002]
[1754088491553,1.3725,3463.6,3462.6,0.002]
[1754088491736,2.88751175,3463.2,3462.6,0.002]
[1754088492060,6.053,3463.2,3462.8,0.144]
[1754088492207,0.9123,3463.1,3462.8,0.144]
[1754088492610,1.3725,3463.6,3462.6,0.002]
[1754088492825,7.4235,3463.6,3463.3,0.144]
[1754088493035,1.3725,3463.5,3462.6,2.88993922]
[1754088493206,2.88758626,3463.1,3463.0,0.144]
[1754088493405,3.9183887,3463.5,3462.6,0.002]
[1754088493712,6.049,3463.5,3463.3,0.144]
[1754088493908,3.001,3463.9,3463.3,0.144]
[1754088494109,8.93595176,3463.9,3463.7,0.144]
[1754088494505,9.84825176,3463.9,3463.7,0.144]
[1754088494752,7.29559024,3463.8,3463.7,0.144]
[1754088494959,7.29559024,3463.8,3462.6,0.002]
[1754088494960,2.88741951,3463.3,3463.2,0.144]
[1754088495138,2.88791983,3462.7,3462.6,0.002]
[1754088495359,2.88791983,3462.7,3462.6,0.1468]
[1754088495652,3.03159012,3463.1,3462.6,0.1468]
[1754088495848,1.0401,3463.1,3462.6,0.1468]
[1754088496195,0.144,3463.1,3462.7,4.22031648]
[1754088496398,0.144,3463.1,3463.0,2.88766965]
[1754088496693,0.001,3463.9,3463.8,2.88700271]
[1754088496862,0.001,3463.9,3463.8,3.03100271]
[1754088497058,0.001,3463.9,3463.8,0.144]
[1754088498174,0.001,3463.9,3463.8,3.03100271]
[1754088498371,2.88791936,3463.9,3463.8,0.144]
[1754088498562,0.001,3463.9,3463.7,0.144]
[1754088499404,0.001,3463.9,3462.6,0.002]
[1754088499561,0.001,3463.9,3463.7,0.144]
[1754088499761,2.88708606,3463.7,3463.2,0.144]
[1754088499967,3.78327777,3463.6,3463.2,0.144]
[1754088500204,1.3421,3463.6,3463.2,0.144]
[1754088500813,0.8961,3463.6,3463.2,0.144]
[1754088500986,6.178,3463.7,3463.2,0.144]
[1754088501305,2.88722169,3463.6,3463.2,0.144]
[1754088501775,6.178,3463.7,3463.2,0.144]
[1754088502288,6.176,3463.7,3463.2,0.144]
[1754088502607,6.032,3463.7,3463.2,2.88750099]
[1754088502772,0.001,3463.9,3463.6,0.144]
[1754088502972,0.001,3463.9,3463.6,3.03114112]
[1754088503226,0.001,3463.9,3463.8,0.144]
[1754088504413,2.88721722,3463.6,3462.8,2.8877745]
[1754088504574,2.88724827,3463.6,3463.3,0.144]
[1754088504776,0.8961,3463.5,3463.3,0.144]
[1754088504972,6.023,3463.8,3463.3,0.144]
[1754088505273,0.446,3463.7,3463.3,0.144]
[1754088505477,0.446,3463.7,3462.6,0.8929]
[1754088505478,1.03208961,3463.6,3462.6,0.002]
[1754088505679,2.88755453,3463.2,3462.8,0.144]
[1754088505873,6.021,3463.1,3462.8,0.144]
[1754088506472,6.02,3463.1,3462.8,0.144]
[1754088507106,0.8961,3463.0,3462.8,0.144]
[1754088507674,0.8961,3463.0,3462.8,3.0317837]
[1754088507873,0.446,3463.1,3462.8,3.0317837]
[1754088507874,6.019,3463.1,3462.8,0.144]
[1754088508293,2.88775303,3462.9,3462.8,0.144]
[1754088508473,1.3421,3463.0,3462.6,0.002]
[1754088508678,0.8961,3462.8,3462.6,0.1468]
[1754088508910,6.019,3463.1,3462.6,0.1468]
[1754088509426,6.012,3463.0,3462.6,0.002]
[1754088509714,10.24182011,3463.0,3462.8,0.144]
[1754088509894,0.8961,3462.9,3462.8,0.144]
[1754088510216,3.78385303,3462.9,3462.8,0.144]
[1754088510385,3.0,3462.8,3462.6,0.002]
[1754088510587,0.8961,3462.9,3462.6,0.002]
[1754088510796,2.88791983,3462.7,3462.6,0.002]
[1754088510985,8.89691983,3462.7,3462.6,0.002]
[1754088511181,2.88791983,3462.7,3462.6,0.002]
[1754088511377,0.8961,3462.8,3462.6,0.002]
[1754088511581,0.8961,3463.3,3462.6,0.002]
[1754088511791,6.008,3463.1,3462.6,3.03476949]
[1754088511998,6.939,3463.6,3463.2,0.144]
[1754088512192,6.007,3463.5,3463.4,2.88733614]
[1754088512392,6.007,3463.5,3463.2,2.88750023]
[1754088512614,0.001,3463.9,3463.8,2.88700271]
[1754088512782,6.006,3463.9,3463.8,2.88700271]
[1754088513115,0.001,3463.9,3463.8,3.03100271]
[1754088513491,0.001,3463.9,3463.8,4.39227273]
[1754088513696,0.001,3463.9,3463.8,0.144]
[1754088513896,0.001,3463.9,3463.8,4.36340271]
[1754088514083,0.001,3463.9,3463.8,5.0884528]
[1754088514431,0.001,3463.9,3463.8,4.36340271]
[1754088514630,0.001,3463.9,3463.8,3.92190271]
[1754088514953,0.001,3463.9,3463.8,0.144]
[1754088515312,0.001,3463.9,3463.8,3.03100271]
[1754088515509,0.001,3463.9,3463.8,0.144]
[1754088515836,0.001,3463.9,3463.8,3.03100271]
[1754088516333,0.001,3463.9,3463.8,4.36340271]
[1754088516760,0.001,3464.2,3463.8,8.11732282]
[1754088517048,0.001,3464.2,3464.1,2.88675269]
[1754088517250,0.001,3464.2,3464.1,3.03075269]
[1754088517948,0.001,3464.2,3464.1,7.24802021]
[1754088518250,0.001,3464.2,3464.1,7.21915269]
[1754088518459,0.001,3464.2,3464.1,2.88675269]
[1754088518827,0.001,3464.2,3463.6,3.8909]
[1754088519009,1.3421,3464.1,3462.8,7.3795]
[1754088519213,1.3421,3464.1,3462.9,0.99716909]
[1754088519461,1.3421,3464.1,3462.6,5.991]
[1754088519462,1.92818545,3464.0,3462.6,0.002]
[1754088519747,2.88717125,3463.6,3462.6,0.002]
[1754088519920,2.88727937,3463.5,3462.7,2.88789572]
[1754088520123,0.8961,3463.7,3462.8,2.88783616]
[1754088520435,2.92328285,3463.6,3462.6,2.88998075]
[1754088520760,2.88718972,3463.6,3462.6,0.002]
[1754088520951,0.8961,3463.7,3462.6,0.29101418]
[1754088521242,0.8961,3463.7,3462.6,0.002]
[1754088521450,0.446,3463.6,3462.6,0.002]
[1754088521842,0.77649187,3463.8,3462.7,1.3324]
[1754088522036,0.77649187,3463.8,3462.8,1.3324]
[1754088522667,5.984,3463.7,3462.8,1.3324]
[1754088522965,0.77649187,3463.8,3463.1,2.88757877]
[1754088523167,0.77649187,3463.8,3463.0,2.88759472]
[1754088523366,0.77649187,3463.8,3463.0,0.28875947]
[1754088523572,0.77649187,3463.8,3463.1,0.8909]
[1754088523742,0.77649187,3463.8,3463.7,2.88708606]
[1754088523949,0.77649187,3463.8,3463.1,0.8909]
[1754088523950,0.77649187,3463.8,3463.2,2.88744809]
[1754088524143,0.77649187,3463.8,3462.9,2.88775303]
[1754088524467,0.77649187,3463.8,3463.7,2.88708606]
[1754088526212,0.77649187,3463.8,3463.4,2.88728453]
[1754088526213,2.05779187,3463.8,3463.4,2.88728453]
[1754088526345,0.814,3463.7,3462.8,3.0]
[1754088526551,2.88791983,3462.7,3462.6,0.002]
[1754088526778,11.85891983,3462.7,3462.6,0.002]
[1754088526929,2.88883753,3461.6,3460.2,2.88993836]
[1754088527135,8.85783753,3461.6,3459.9,0.8523]
[1754088527358,14.60626472,3461.6,3459.8,0.4363]
[1754088527569,15.15626472,3461.6,3460.5,2.88974237]
[1754088527952,15.30106472,3461.6,3460.8,0.1448]
[1754088528159,15.30106472,3461.6,3459.8,3.32657876]
[1754088528160,4.2813,3461.6,3460.2,0.4363]
[1754088528384,5.966,3461.9,3461.5,0.1468]
[1754088528556,8.85450416,3462.0,3461.5,0.1468]
[1754088528758,0.1448,3462.2,3461.7,0.1448]
[1754088528956,7.2463,3462.1,3461.7,0.1448]
[1754088529162,1.2813,3462.1,3461.7,0.1448]
[1754088529383,5.965,3462.1,3461.7,0.1448]
[1754088529691,5.965,3462.1,3461.5,0.002]
[1754088529692,4.16980375,3462.0,3461.9,0.1448]
[1754088529858,3.58363753,3461.6,3461.5,0.002]
[1754088530046,0.1448,3461.6,3461.5,0.002]
[1754088530246,1.4261,3461.6,3461.5,0.002]
[1754088530469,2.88820857,3462.4,3461.5,0.002]
[1754088530794,0.1448,3462.0,3461.5,0.1468]
[1754088530999,0.9588,3462.0,3461.5,3.03570075]
[1754088531212,5.963,3462.3,3461.8,0.1448]
[1754088531213,6.1078,3462.3,3461.8,0.1448]
[1754088531353,1.2813,3461.9,3461.5,0.002]
[1754088531554,1.2813,3461.9,3461.6,0.1448]
[1754088531853,5.961,3462.0,3461.5,0.002]
[1754088532155,0.814,3462.4,3461.5,0.0308892]
[1754088532375,0.814,3462.9,3461.6,4.17742255]
[1754088532577,5.959,3462.8,3462.4,0.1448]
[1754088532777,0.814,3462.7,3462.4,0.1448]
[1754088533293,1.2813,3462.6,3462.4,0.1448]
[1754088533497,7.2403,3462.6,3462.4,0.1448]
[1754088533652,0.144,3462.9,3462.4,0.1448]
[1754088534201,5.956,3462.8,3462.4,0.1448]
[1754088534502,1.2813,3462.7,3462.1,0.1448]
[1754088534700,1.2813,3462.7,3461.3,0.8523]
[1754088534701,3.84680422,3462.6,3461.4,3.0]
[1754088534861,3.84680422,3462.6,3461.3,2.88907566]
[1754088534862,2.88817005,3462.4,3461.3,2.88908556]
[1754088535199,0.55,3461.9,3459.9,2.89021575]
[1754088535360,0.1448,3461.7,3461.1,0.1448]
[1754088535560,9.39183753,3461.6,3460.1,1.2886]
[1754088535762,13.67313753,3461.6,3461.0,0.1448]
[1754088535987,13.67313753,3461.6,3460.6,0.1448]
[1754088536270,2.88949305,3460.9,3460.4,0.1448]
[1754088536601,5.951,3460.8,3460.4,0.1448]
[1754088537099,6.765,3460.8,3460.4,0.1448]
[1754088537301,5.951,3460.8,3460.4,0.1448]
[1754088537515,1.2813,3460.7,3460.4,0.1448]
[1754088537686,0.1448,3460.9,3460.4,0.1448]
[1754088537891,5.949,3460.7,3460.4,0.1448]
[1754088538367,5.946,3460.7,3460.4,0.1448]
[1754088538790,5.946,3460.7,3460.6,0.1448]
[1754088539104,0.814,3460.6,3460.4,0.1448]
[1754088539306,0.814,3461.0,3459.4,0.02890674]
[1754088539605,5.945,3460.9,3460.5,0.1448]
[1754088539811,5.944,3461.2,3459.6,0.02890507]
[1754088539978,5.944,3461.2,3459.5,0.82020342]
[1754088539979,2.92543999,3461.1,3460.8,0.1448]
[1754088540172,1.2813,3461.1,3460.8,0.1448]
[1754088540368,1.2813,3461.0,3458.2,2.89163685]
[1754088540598,1.86741777,3460.9,3458.8,0.8543]
[1754088540767,2.89012596,3460.1,3459.8,0.1448]
[1754088540982,6.755,3460.0,3459.8,0.1448]
[1754088541178,5.941,3460.0,3459.8,3.03508037]
[1754088541412,1.14705372,3460.8,3459.9,1.4334]
[1754088541413,5.941,3460.8,3459.9,1.4334]
[1754088541645,0.77198874,3461.3,3461.2,2.88917138]
[1754088542242,0.77198874,3461.3,3460.2,3.0]
[1754088542450,0.77198874,3461.3,3461.2,2.88917138]
[1754088542762,0.77198874,3461.3,3461.2,4.17777138]
[1754088543058,0.77198874,3461.3,3460.7,0.8523]
[1754088543340,0.77198874,3461.3,3461.2,2.88917138]
[1754088543700,0.77198874,3461.3,3460.6,1.2886]
[1754088543940,0.77198874,3461.3,3460.6,2.07822118]
[1754088544140,0.77198874,3461.3,3460.5,2.8897387]
[1754088544323,0.77198874,3461.3,3460.6,0.02889672]
[1754088544525,0.77198874,3461.3,3460.8,2.8894958]
[1754088545054,0.77198874,3461.3,3460.2,4.2886]
[1754088545055,1.58598874,3461.3,3460.2,4.2886]
[1754088545240,0.77198874,3461.3,3460.5,2.88975581]
[1754088545425,0.77198874,3461.3,3460.7,2.88956719]
[1754088545644,0.77198874,3461.3,3461.2,2.88917138]
[1754088545843,0.77198874,3461.3,3461.2,7.20666309]
[1754088546158,0.77198874,3461.3,3461.2,8.18736445]
[1754088546933,0.77198874,3461.3,3461.2,3.0]
[1754088547174,0.77198874,3461.3,3461.2,2.88917138]
[1754088547351,0.77198874,3461.3,3461.2,4.17777138]
[1754088548258,5.924,3462.4,3461.2,1.2886]
[1754088548572,5.924,3462.5,3461.9,2.88853081]
[1754088548758,8.81209674,3462.5,3461.7,2.88873927]
[1754088548964,5.924,3462.5,3461.6,2.88881917]
[1754088549145,3.814,3463.0,3462.2,2.88828487]
[1754088549347,5.922,3462.7,3462.1,2.8884111]
[1754088549563,5.922,3462.7,3461.6,1.2886]
[1754088549871,10.12642112,3462.6,3461.3,0.71777831]
[1754088550085,2.88808664,3462.5,3461.3,0.71777831]
[1754088550376,2.88850375,3462.0,3460.6,0.867728]
[1754088550550,2.88939381,3461.0,3460.6,0.867728]
[1754088550746,3.70349761,3460.9,3460.1,2.89002311]
[1754088550954,3.70342255,3460.9,3460.1,2.89006536]
[1754088551273,2.88989668,3460.4,3460.0,0.28902331]
[1754088551459,0.814,3460.9,3459.5,0.8523]
[1754088551663,0.1448,3460.8,3460.3,0.1448]
[1754088551836,2.88983932,3460.4,3460.3,0.1448]
[1754088552038,1.2813,3460.4,3459.8,0.1448]
[1754088552362,1.2813,3461.0,3460.1,2.89008976]
[1754088552563,1.2813,3461.0,3460.9,0.1448]
[1754088552763,0.814,3461.5,3460.9,0.1448]
[1754088553073,2.88933834,3461.0,3460.9,0.1448]
[1754088553291,2.88943254,3460.9,3460.8,0.1448]
[1754088553450,2.88962984,3460.7,3460.6,0.1448]
[1754088553641,5.912,3460.7,3460.4,0.1448]
[1754088553842,2.88975581,3460.5,3459.8,3.0]
[1754088554186,2.88975581,3460.5,3458.3,0.8523]
[1754088554187,1.31742299,3460.4,3458.3,0.8523]
[1754088554339,1.31742299,3460.4,3459.4,0.1448]
[1754088554340,0.55,3460.2,3459.4,0.1448]
[1754088554688,0.55,3460.2,3457.8,0.8543]
[1754088554689,2.89067468,3459.4,3457.8,0.8543]
[1754088554844,0.1448,3459.2,3457.8,0.8543]
[1754088555037,5.91,3459.1,3458.7,0.1448]
[1754088555244,5.909,3459.1,3458.9,2.89103109]
[1754088555480,5.909,3459.3,3459.0,0.1448]
[1754088556044,5.908,3459.6,3459.3,2.89072884]
[1754088556441,5.908,3459.6,3459.2,2.89082363]
[1754088556658,5.908,3459.6,3459.5,0.1448]
[1754088557179,6.7268,3459.6,3459.5,0.1448]
[1754088557381,7.9066,3460.2,3459.5,0.1448]
[1754088557546,5.906,3460.1,3459.5,0.1448]
[1754088557744,6.942,3460.2,3459.2,0.02890841]
[1754088557947,1.28822612,3460.1,3459.1,0.002]
[1754088558176,0.70334695,3463.1,3459.8,3.0]
[1754088558177,0.1448,3461.3,3459.8,3.0]
[1754088558380,0.8198,3462.6,3461.8,2.88859055]
[1754088558581,0.1448,3462.5,3461.8,0.1448]
[1754088558897,0.1448,3462.5,3461.3,0.46369087]
[1754088558898,6.7218,3462.7,3462.4,0.1448]
[1754088559180,4.2521,3462.6,3461.3,0.4348]
[1754088559383,7.14018664,3462.5,3462.4,0.1448]
[1754088559548,3.0,3462.4,3460.8,0.8559]
[1754088559745,2.88873622,3461.8,3460.2,2.8900008]
[1754088559944,3.18090942,3461.7,3461.2,0.1448]
[1754088560178,2.88908791,3461.3,3459.9,0.3]
[1754088560376,2.88949923,3460.9,3459.3,0.8559]
[1754088560603,0.8198,3460.9,3459.4,0.46370674]
[1754088560903,3.0,3460.7,3460.6,0.1448]
[1754088561063,7.17780867,3460.7,3460.4,0.1448]
[1754088561262,1.2521,3460.6,3459.2,2.89084181]
[1754088561463,0.03612194,3460.5,3460.2,0.1448]
[1754088561701,0.03612194,3460.5,3459.1,0.002]
[1754088561702,0.6948,3460.3,3459.1,0.002]
[1754088561870,3.55,3459.8,3459.1,0.002]
[1754088562076,2.89084181,3459.2,3459.1,0.002]
[1754088562274,12.33484181,3459.2,3459.1,0.002]
[1754088562482,6.44109254,3458.9,3458.6,0.002]
[1754088562803,6.58589254,3458.9,3458.8,1e-08]
[1754088563006,3.44125972,3458.7,3458.6,0.002]
[1754088563173,8.59962569,3458.7,3458.6,0.002]
[1754088563373,10.77587376,3458.7,3458.6,1e-08]
[1754088563703,10.95858881,3458.7,3458.6,1e-08]
[1754088563931,14.39984853,3458.7,3458.6,1e-08]
[1754088564112,2.61758881,3458.7,3458.6,1e-08]
[1754088564262,10.95758881,3458.7,3458.6,1e-08]
[1754088564464,2.06758881,3458.7,3458.6,1e-08]
[1754088564670,0.81548881,3458.7,3458.6,1e-08]
[1754088565064,0.81548881,3458.7,3457.8,0.002]
[1754088565065,3.44192862,3457.9,3457.8,0.002]
[1754088565277,3.44192862,3457.9,3455.2,2.55877141]
[1754088565278,9.54863769,3458.7,3455.8,0.02893685]
[1754088565587,0.8198,3461.1,3456.8,2.8928004]
[1754088565786,6.3183,3461.0,3457.9,2.89192862]
[1754088565989,0.4323,3461.0,3458.5,3.0]
[1754088566190,7.13201,3460.9,3458.7,3.0]
[1754088566499,3.0,3460.5,3458.8,0.8559]
[1754088566700,3.0,3460.2,3458.5,2.89142525]
[1754088566901,3.0,3459.8,3457.9,2.89185215]
[1754088567217,2.89111415,3458.9,3458.0,0.33266522]
[1754088567432,0.55,3458.7,3457.0,0.8559]
[1754088567732,2.89180674,3458.1,3455.9,0.8559]
[1754088568020,8.23324806,3458.0,3454.6,1.2907]
[1754088568222,2.89304016,3456.6,3454.9,3.750328]
[1754088568406,0.03615956,3456.9,3455.8,2.89366077]
[1754088568747,3.55,3457.3,3456.1,2.89342155]
[1754088568748,8.77543068,3457.3,3456.1,2.89342155]
[1754088568878,0.55,3457.1,3455.4,1.2907]
[1754088569081,0.55,3456.8,3453.6,2.8954729]
[1754088569320,3.0,3456.9,3454.2,1.2907]
[1754088569321,0.55,3456.6,3454.2,1.2907]
[1754088569493,0.55,3456.1,3453.5,1.2907]
[1754088569699,0.55,3455.9,3453.5,1.2907]
[1754088570018,0.55,3455.6,3454.0,3.0]
[1754088570181,6.6988,3455.5,3454.0,1.31965193]
[1754088570382,6.6988,3455.5,3454.2,3.0]
[1754088570383,0.8198,3455.5,3454.2,3.0]
[1754088570579,5.879,3455.5,3455.4,2.89402095]
[1754088570786,6.68836171,3455.8,3454.5,0.4348]
[1754088570983,6.68836171,3455.8,3454.3,0.92135563]
[1754088570984,2.8939372,3455.5,3454.2,2.89501008]
[1754088571208,0.03617526,3455.4,3454.4,2.89479072]
[1754088571521,1.22639752,3455.7,3454.1,3.0]
[1754088571696,5.879,3455.6,3454.3,3.0]
[1754088571898,0.8198,3456.0,3454.4,0.88484858]
[1754088572085,2.89244993,3457.3,3454.4,0.88484858]
[1754088572086,5.878,3456.2,3455.4,2.89396973]
[1754088572422,6.6978,3456.2,3455.4,2.89401818]
[1754088572624,5.877,3456.3,3455.9,2.89360001]
[1754088572933,5.877,3456.2,3455.1,0.4348]
[1754088573143,5.877,3456.2,3455.4,0.8559]
[1754088573302,0.80331047,3456.7,3455.0,1.2907]
[1754088573619,0.80331047,3456.7,3455.1,0.8559]
[1754088573838,5.875,3456.6,3455.2,3.0]
[1754088573985,0.80331047,3456.7,3455.3,2.04102518]
[1754088574184,0.80331047,3456.7,3456.6,2.89301625]
[1754088574407,0.80331047,3456.7,3456.6,4.32851625]
[1754088574716,0.80331047,3456.7,3456.6,6.03781625]
[1754088574918,0.80331047,3456.7,3456.6,6.93091418]
[1754088575219,0.80331047,3456.7,3456.6,8.22161418]
[1754088576089,0.1448,3458.1,3456.6,5.32859793]
[1754088576288,0.8198,3458.3,3456.7,3.02892932]
[1754088576501,5.871,3458.2,3457.9,0.1448]
[1754088576821,5.871,3458.2,3457.8,0.1448]
[1754088576822,0.03614701,3458.1,3457.8,0.1448]
[1754088577008,5.87,3458.2,3457.8,0.1448]
[1754088577325,0.8198,3458.1,3457.8,0.1448]
[1754088577488,1.28824806,3458.0,3456.8,2.89278908]
[1754088577687,1.28824806,3458.0,3456.3,3.0]
[1754088577688,2.89258039,3457.2,3456.3,3.0]
[1754088577887,2.89258039,3457.2,3455.6,0.8559]
[1754088577888,5.90415747,3457.1,3456.9,0.1448]
[1754088578095,2.89268151,3457.0,3456.9,0.1448]
[1754088578316,0.1448,3457.3,3456.9,0.1448]